fUSD/lending_fUSD_20250609
["ID","MTS","AMOUNT","RATE_DAILY","PERIOD"]
[365145238,1749492640763,-490.0,0.00019178,2]
[365145240,1749492640773,-490.0,0.00019178,2]
[365145242,1749492640782,-490.0,0.00019178,2]
[365145243,1749492640792,-490.0,0.00019178,2]
[365145245,1749492640801,-989.5,0.00019178,2]
[365145247,1749492640811,-490.0,0.00019178,2]
[365145249,1749492640820,-490.0,0.00019178,2]
[365145251,1749492640827,-490.0,0.00019178,2]
[365145253,1749492640834,-151.0,0.00019178,2]
[365145255,1749492640843,-490.0,0.00019178,2]
[365145257,1749492640851,-490.0,0.00019178,2]
[365145259,1749492640860,-490.0,0.00019178,2]
[365145261,1749492640870,-490.0,0.00019178,2]
[365145263,1749492640883,-490.0,0.00019178,2]
[365145265,1749492640893,-490.0,0.00019178,2]
[365145267,1749492640902,-490.0,0.00019178,2]
[365145269,1749492640912,-490.0,0.00019178,2]
[365145271,1749492640922,-901.15,0.00019178,2]
[365145273,1749492640932,-490.0,0.00019178,2]
[365145275,1749492640942,-490.0,0.00019178,2]
[365145277,1749492640954,-490.0,0.00019178,2]
[365145279,1749492640964,-490.0,0.00019178,2]
[365145281,1749492640974,-807.75,0.00019178,2]
[365145283,1749492640983,-490.0,0.00019178,2]
[365145285,1749492640993,-619.08,0.00019178,2]
[365145287,1749492641003,-250.027671,0.00019178,2]
[365145289,1749492641013,-490.0,0.00019178,2]
[365145291,1749492641023,-490.0,0.00019178,2]
[365145292,1749492641033,-1323.51,0.00019178,2]
[365145294,1749492641043,-490.0,0.00019178,2]
[365145296,1749492641053,-151.0,0.00019178,2]
[365145298,1749492641063,-223.704309,0.00019178,2]
[365145300,1749492641073,-250.027671,0.00019178,2]
[365145302,1749492641082,-490.0,0.00019178,2]
[365145304,1749492641092,-894.22,0.00019178,2]
[365145306,1749492641101,-490.0,0.00019178,2]
[365145308,1749492641111,-490.0,0.00019178,2]
[365145310,1749492641121,-490.0,0.00019178,2]
[365145313,1749492641131,-788.25,0.00019178,2]
[365145315,1749492641141,-721.34,0.00019178,2]
[365145317,1749492641151,-151.0,0.00019178,2]
[365145319,1749492641160,-490.0,0.00019178,2]
[365145321,1749492641170,-605.25,0.00019178,2]
[365145323,1749492641180,-990.15,0.00019178,2]
[365145325,1749492641191,-490.0,0.00019178,2]
[365145327,1749492641201,-490.0,0.00019178,2]
[365145328,1749492641211,-579.42,0.00019178,2]
[365145330,1749492641221,-519.55,0.00019178,2]
[365145332,1749492641231,-490.0,0.00019178,2]
[365145334,1749492641241,-490.0,0.00019178,2]
[365145336,1749492641251,-1055.84,0.00019178,2]
[365145338,1749492641261,-490.0,0.00019178,2]
[365145340,1749492641271,-490.0,0.00019178,2]
[365145342,1749492641281,-490.0,0.00019178,2]
[365145344,1749492641291,-953.642418,0.00019178,2]
[365145346,1749492641300,-490.0,0.00019178,2]
[365145348,1749492641310,-490.0,0.00019178,2]
[365145350,1749492641319,-953.642418,0.00019178,2]
[365145352,1749492641329,-480.05422847,0.00019178,2]
[365145354,1749492641339,-474.58661117,0.00019178,2]
[365145356,1749492641350,-490.0,0.00019178,2]
[365145359,1749492641360,-490.0,0.00019178,2]
[365145361,1749492641370,-490.0,0.00019178,2]
[365145363,1749492641380,-490.0,0.00019178,2]
[365145365,1749492641390,-490.0,0.00019178,2]
[365145367,1749492641400,-490.0,0.00019178,2]
[365145369,1749492641410,-490.0,0.00019178,2]
[365145371,1749492641420,-490.0,0.00019178,2]
[365145373,1749492641431,-800.8,0.00019178,2]
[365145375,1749492641441,-608.43,0.00019178,2]
[365145377,1749492641451,-500.0,0.00019178,2]
[365145379,1749492641461,-209.00475367,0.00019178,2]
[365145381,1749492641471,-490.0,0.00019178,2]
[365145383,1749492641480,-200.21159355,0.00019178,2]
[365145385,1749492641490,-938.45,0.00019178,2]
[365145387,1749492641500,-186.564629,0.00019178,2]
[365145389,1749492641511,-188.07808,0.00019178,2]
[365145391,1749492641521,-186.564629,0.00019178,2]
[365145393,1749492641531,-490.0,0.00019178,2]
[365145395,1749492641541,-186.564629,0.00019178,2]
[365145397,1749492641551,-188.07808,0.00019178,2]
[365145399,1749492641562,-186.564629,0.00019178,2]
[365145401,1749492641572,-151.0,0.00019178,2]
[365145403,1749492641583,-605.73,0.00019178,2]
[365145405,1749492641593,-1127.04,0.00019178,2]
[365145407,1749492641603,-480.0,0.00019178,2]
[365145409,1749492641614,-490.0,0.00019178,2]
[365145411,1749492641624,-490.0,0.00019178,2]
[365145413,1749492641634,-490.0,0.00019178,2]
[365145415,1749492641644,-635.18,0.00019178,2]
[365145417,1749492641653,-495.77,0.00019178,2]
[365145419,1749492641663,-490.0,0.00019178,2]
[365145421,1749492641673,-151.0,0.00019178,2]
[365145423,1749492641683,-195.274445,0.00019178,2]
[365145425,1749492641693,-1284.04,0.00019178,2]
[365145427,1749492641703,-470.0,0.00019178,2]
[365145429,1749492641713,-490.0,0.00019178,2]
[365145431,1749492641723,-195.274445,0.00019178,2]
[365145433,1749492641733,-151.0,0.00019178,2]
[365145435,1749492641743,-490.0,0.00019178,2]
[365145437,1749492641752,-490.0,0.00019178,2]
[365145439,1749492641761,-490.0,0.00019178,2]
[365145441,1749492641771,-4335.63394,0.00019178,2]
[365145443,1749492641780,-490.0,0.00019178,2]
[365145445,1749492641790,-490.0,0.00019178,2]
[365145447,1749492641799,-206.870632,0.00019178,2]
[365145449,1749492641809,-1206.98,0.00019178,2]
[365145451,1749492641819,-490.0,0.00019178,2]
[365145453,1749492641828,-490.0,0.00019178,2]
[365145455,1749492641839,-490.0,0.00019178,2]
[365145457,1749492641848,-595.33,0.00019178,2]
[365145459,1749492641858,-206.870632,0.00019178,2]
[365145461,1749492641867,-490.0,0.00019178,2]
[365145463,1749492641879,-541.37468774,0.00019178,2]
[365145464,1749492641890,-490.0,0.00019178,2]
[365145467,1749492641900,-490.0,0.00019178,2]
[365145468,1749492641910,-495.43,0.00019178,2]
[365145470,1749492641920,-490.0,0.00019178,2]
[365145473,1749492641930,-490.0,0.00019178,2]
[365145474,1749492641941,-1313.11,0.00019178,2]
[365145476,1749492641951,-473.9984661,0.00019178,2]
[365145547,1749492642696,-88.2315339,0.00019178,2]
[365145549,1749492642706,-643.93943698,0.00019178,2]
[365145551,1749492642718,-27.24056302,0.00019178,2]
[365145553,1749492642729,-490.0,0.00019178,2]
[365145555,1749492642740,-525.4,0.00019178,2]
[365145558,1749492642750,-224.20223052,0.00019178,2]
[365145561,1749492642760,-151.0,0.00019178,2]
[365145563,1749492642771,-378.5086487,0.00019178,2]
[365145603,1749492643095,-230.6713513,0.00019178,2]
[365145606,1749492643108,-151.0,0.00019178,2]
[365145608,1749492643117,-151.0,0.00019178,2]
[365145610,1749492643127,-81.39647009,0.00019178,2]
[365145612,1749492643139,-408.60352991,0.00019178,2]
[365145614,1749492643149,-480.0,0.00019178,2]
[365145616,1749492643158,-151.0,0.00019178,2]
[365145618,1749492643168,-267.11136607,0.00019178,2]
[365145620,1749492643177,-643.76,0.00019178,2]
[365145622,1749492643187,-771.19,0.00019178,2]
[365145624,1749492643197,-490.0,0.00019178,2]
[365145626,1749492643207,-151.0,0.00019178,2]
[365145628,1749492643216,-490.0,0.00019178,2]
[365145630,1749492643226,-490.0,0.00019178,2]
[365145632,1749492643235,-490.0,0.00019178,2]
[365145634,1749492643245,-189.52019711,0.00019178,2]
[365145636,1749492643255,-151.0,0.00019178,2]
[365145638,1749492643264,-568.97,0.00019178,2]
[365145640,1749492643274,-490.0,0.00019178,2]
[365145642,1749492643283,-151.0,0.00019178,2]
[365145644,1749492643293,-490.0,0.00019178,2]
[365145646,1749492643302,-490.0,0.00019178,2]
[365145648,1749492643312,-716.16,0.00019178,2]
[365145650,1749492643321,-490.0,0.00019178,2]
[365145652,1749492643330,-570.16365202,0.00019178,2]
[365145654,1749492643339,-490.0,0.00019178,2]
[365145656,1749492643349,-490.0,0.00019178,2]
[365145658,1749492643359,-151.0,0.00019178,2]
[365145660,1749492643369,-151.0,0.00019178,2]
[365145662,1749492643378,-2583.44,0.00019178,2]
[365145664,1749492643388,-490.0,0.00019178,2]
[365145667,1749492643397,-589.98,0.00019178,2]
[365145670,1749492643407,-151.0,0.00019178,2]
[365145673,1749492643417,-490.0,0.00019178,2]
[365145676,1749492643426,-490.0,0.00019178,2]
[365145679,1749492643436,-721.77,0.00019178,2]
[365145682,1749492643446,-490.0,0.00019178,2]
[365145684,1749492643456,-490.0,0.00019178,2]
[365145688,1749492643466,-701.64,0.00019178,2]
[365145690,1749492643476,-490.0,0.00019178,2]
[365145692,1749492643486,-666.36,0.00019178,2]
[365145694,1749492643496,-490.0,0.00019178,2]
[365145696,1749492643504,-490.0,0.00019178,2]
[365145698,1749492643514,-634.27,0.00019178,2]
[365145700,1749492643523,-1140.69,0.00019178,2]
[365145702,1749492643533,-490.0,0.00019178,2]
[365145704,1749492643543,-151.0,0.00019178,2]
[365145706,1749492643552,-490.0,0.00019178,2]
[365145708,1749492643561,-490.0,0.00019178,2]
[365145710,1749492643571,-490.0,0.00019178,2]
[365145712,1749492643581,-490.0,0.00019178,2]
[365145714,1749492643591,-219.15988668,0.00019178,2]
[365145716,1749492643601,-512.37,0.00019178,2]
[365145718,1749492643611,-490.0,0.00019178,2]
[365145720,1749492643620,-1430.31,0.00019178,2]
[365145722,1749492643630,-490.0,0.00019178,2]
[365145724,1749492643639,-2383.43,0.00019178,2]
[365145726,1749492643648,-591.92,0.00019178,2]
[365145728,1749492643658,-490.0,0.00019178,2]
[365145730,1749492643668,-675.39,0.00019178,2]
[365145731,1749492643677,-490.0,0.00019178,2]
[365145733,1749492643687,-874.84,0.00019178,2]
[365145735,1749492643697,-607.9,0.00019178,2]
[365145737,1749492643706,-490.0,0.00019178,2]
[365145739,1749492643716,-1463.131105,0.00019178,2]
[365145742,1749492643726,-151.0,0.00019178,2]
[365145743,1749492643735,-1311.68,0.00019178,2]
[365145745,1749492643745,-2484.18,0.00019178,2]
[365145747,1749492643756,-349.98209601,0.00019178,2]
[365145749,1749492643765,-151.0,0.00019178,2]
[365145751,1749492643774,-490.0,0.00019178,2]
[365145753,1749492643784,-1463.131105,0.00019178,2]
[365145755,1749492643793,-1194.09102251,0.00019178,2]
[365145759,1749492643824,-340.76897749,0.00019178,2]
[365145761,1749492643834,-490.0,0.00019178,2]
[365145763,1749492643843,-490.0,0.00019178,2]
[365145765,1749492643853,-490.0,0.00019178,2]
[365145767,1749492643863,-1122.22,0.00019178,2]
[365145769,1749492643876,-732.34,0.00019178,2]
[365145771,1749492643886,-214.00284756,0.00019178,2]
[365145774,1749492643902,-876.16715244,0.00019178,2]
[365145776,1749492643912,-724.85,0.00019178,2]
[365145778,1749492643923,-490.0,0.00019178,2]
[365145780,1749492643933,-1000.0,0.00019178,2]
[365145782,1749492643943,-490.0,0.00019178,2]
[365145784,1749492643955,-490.0,0.00019178,2]
[365145786,1749492643964,-863.87,0.00019178,2]
[365145788,1749492643974,-904.69,0.00019178,2]
[365145790,1749492643984,-650.65,0.00019178,2]
[365145792,1749492643994,-603.74,0.00019178,2]
[365145794,1749492644004,-789.52,0.00019178,2]
[365145796,1749492644014,-490.0,0.00019178,2]
[365145798,1749492644023,-66.51284756,0.00019178,2]
[365145800,1749492644035,-607.46602351,0.00019178,2]
[365145804,1749492644057,-21.90112893,0.00019178,2]
[365145805,1749492644066,-1047.63,0.00019178,2]
[365145807,1749492644076,-152.02711,0.00019178,2]
[365145810,1749492644086,-840.28,0.00019178,2]
[365145811,1749492644096,-497.09,0.00019178,2]
[365145814,1749492644106,-490.0,0.00019178,2]
[365145816,1749492644116,-179.49064093,0.00019178,2]
[365145818,1749492644133,-1177.88935907,0.00019178,2]
[365145820,1749492644142,-151.0,0.00019178,2]
[365145822,1749492644153,-490.0,0.00019178,2]
[365145824,1749492644168,-17581.97,0.00019178,2]
[365145826,1749492644178,-2290.26,0.00019178,2]
[365145828,1749492644188,-621.05,0.00019178,2]
[365145830,1749492644198,-490.0,0.00019178,2]
[365145832,1749492644208,-1249.91,0.00019178,2]
[365145834,1749492644217,-500.0,0.00019178,2]
[365145836,1749492644227,-490.0,0.00019178,2]
[365145838,1749492644236,-490.0,0.00019178,2]
[365145840,1749492644246,-1824.43,0.00019178,2]
[365145842,1749492644256,-490.0,0.00019178,2]
[365145844,1749492644266,-490.0,0.00019178,2]
[365145846,1749492644275,-480.0,0.00019178,2]
[365145848,1749492644286,-490.0,0.00019178,2]
[365145850,1749492644296,-1152.21,0.00019178,2]
[365145852,1749492644307,-490.0,0.00019178,2]
[365145855,1749492644317,-4548.04,0.00019178,2]
[365145857,1749492644327,-490.0,0.00019178,2]
[365145859,1749492644337,-1780.36,0.00019178,2]
[365145860,1749492644348,-490.0,0.00019178,2]
[365145862,1749492644358,-151.0,0.00019178,2]
[365145864,1749492644367,-863.51,0.00019178,2]
[365145867,1749492644377,-1142.74,0.00019178,2]
[365145869,1749492644387,-615.81,0.00019178,2]
[365145871,1749492644397,-490.0,0.00019178,2]
[365145873,1749492644407,-657.22,0.00019178,2]
[365145875,1749492644418,-1561.28,0.00019178,2]
[365145877,1749492644427,-902.63,0.00019178,2]
[365145878,1749492644437,-509.97071989,0.00019178,2]
[365145880,1749492644447,-794.35,0.00019178,2]
[365145882,1749492644457,-490.0,0.00019178,2]
[365145884,1749492644467,-490.0,0.00019178,2]
[365145886,1749492644476,-490.0,0.00019178,2]
[365145888,1749492644486,-507.45105848,0.00019178,2]
[365145891,1749492644498,-23.07161252,0.00019178,2]
[365145893,1749492644508,-530.522671,0.00019178,2]
[365145895,1749492644519,-1109.31,0.00019178,2]
[365145897,1749492644529,-530.522671,0.00019178,2]
[365145899,1749492644538,-680.3,0.00019178,2]
[365145901,1749492644547,-114.84553244,0.00019178,2]
[365145904,1749492644572,-415.67713856,0.00019178,2]
[365145906,1749492644583,-329.31934752,0.00019178,2]
[365145988,1749492645475,-408.09,0.00018287,2]
[365145990,1749492645486,-160.68065248,0.00019178,2]
[365145992,1749492645495,-528.82653752,0.00019178,2]
[365145995,1749492645511,-401.08346248,0.00019178,2]
[365145997,1749492645520,-108.0068351,0.00019178,2]
[365146061,1749492646103,-2578.3231649,0.00019178,2]
[365146063,1749492646114,-886.74,0.00019178,2]
[365146065,1749492646123,-622.78,0.00019178,2]
[365146067,1749492646133,-4969.37,0.00019178,2]
[365146069,1749492646142,-798.31,0.00019178,2]
[365146071,1749492646151,-785.64467406,0.00019178,2]
[365146074,1749492646167,-50.18532594,0.00019178,2]
[365146076,1749492646176,-490.0,0.00019178,2]
[365146078,1749492646186,-0.82427406,0.00019178,2]
[365146098,1749492646370,-489.17572594,0.00019178,2]
[365146100,1749492646380,-962.97,0.00019178,2]
[365146102,1749492646389,-1004.32,0.00019178,2]
[365146104,1749492646399,-135.05257165,0.00019178,2]
[365146744,1749492671510,217.0,0.00017543,2]
[365146747,1749492825811,-256.246532,0.00018807,2]
[365146748,1749492825832,-201.0,0.00018902,2]
[365146749,1749492825855,-300.0,0.00019024,2]
[365146750,1749492825876,-500.0,0.00019025,2]
[365146751,1749492825897,-300.0,0.00019079,2]
[365146752,1749492825917,-1000.0,0.000191,2]
[365146753,1749492825939,-431.086229,0.00019115,2]
[365146754,1749492825964,-5679.54809933,0.00019133,2]
[365146755,1749492825986,-300.0,0.00019165,2]
[365146756,1749492826006,-151.0,0.00019166,2]
[365146757,1749492826028,-1381.11913967,0.00019166,2]
[365146758,1749492837172,174.49,0.00014629,2]
[365146759,1749493188503,151.0,0.00017939,2]
[365146760,1749493226589,151.0,0.00017417,2]
[365146761,1749493243531,151.0,0.0001738,2]
[365146763,1749493397103,447.09,0.00013699,2]
[365146764,1749493471886,250.0,0.00017972,2]
[365146765,1749493494188,681.43949838,0.00024657,120]
[365146766,1749493539275,1144.26,0.00016083,2]
[365146767,1749493552351,176.07443716,0.00017978,2]
[365146768,1749493617277,1852.42,0.00017984,2]
[365146769,1749493649737,436.32,0.00017922,2]
[365146772,1749493679584,36308.26594545,0.000179,2]
[365146782,1749493811858,201.0,0.0001711,2]
[365146783,1749493818766,851.4,0.00017922,2]
[365146789,1749493832060,-358.34458,0.00018071,2]
[365146790,1749493832072,-264.61209253,0.00018071,2]
[365146791,1749493832147,-4162.73332747,0.00018071,2]
[365146792,1749493832156,-300.0,0.00018075,2]
[365146793,1749493832167,-250.0,0.00018126,2]
[365146794,1749493832177,-200.87,0.00018168,2]
[365146795,1749493832186,-1000.0,0.00018172,2]
[365146796,1749493832195,-1200.0,0.00018176,2]
[365146797,1749493832205,-892.8,0.00018177,2]
[365146798,1749493832214,-164.52,0.00018184,2]
[365146799,1749493832224,-150.0,0.00018188,7]
[365146800,1749493832236,-300.0,0.00018193,2]
[365146801,1749493832245,-300.0,0.00018194,2]
[365146802,1749493832255,-613.81201777,0.00018195,2]
[365146803,1749493832271,-1185.52798223,0.00018195,2]
[365146804,1749493832280,-201.0,0.00018336,3]
[365146805,1749493832291,-1144.26,0.00018347,2]
[365146806,1749493832303,-1957.856,0.00018376,2]
[365146807,1749493832312,-207.4,0.00018376,2]
[365146808,1749493832321,-2030.296672,0.00018431,2]
[365146809,1749493832331,-2105.41764886,0.00018486,2]
[365146810,1749493832341,-292.4,0.000185,2]
[365146811,1749493832350,-150.0,0.000185,2]
[365146812,1749493832360,-161.68,0.000185,2]
[365146813,1749493832372,-461.18,0.000185,2]
[365146814,1749493832381,-150.0,0.000185,2]
[365146815,1749493832391,-461.18,0.000185,2]
[365146816,1749493832400,-665.42211273,0.00018541,2]
[365146817,1749493832411,-820.92346271,0.00018541,2]
[365146818,1749493832449,-696.97252643,0.00018541,2]
[365146819,1749493832459,-2264.10087164,0.00018596,2]
[365146820,1749493832468,-2347.87260389,0.00018651,2]
[365146821,1749493832477,-2434.74389024,0.00018706,2]
[365146822,1749493832487,-166.52,0.00018734,2]
[365146823,1749493832496,-262.52004482,0.00018761,2]
[365146824,1749493832506,-387.977606,0.00018794,2]
[365146825,1749493832515,-150.0,0.000188,2]
[365146826,1749493832524,-163.2,0.000188,2]
[365146827,1749493832534,-354.34,0.000188,2]
[365146828,1749493832543,-461.18,0.000188,2]
[365146830,1749493832552,-150.0,0.000188,2]
[365146832,1749493832562,-300.82,0.000189,2]
[365146834,1749493832572,-150.0,0.000189,2]
[365146836,1749493832581,-150.0,0.000189,2]
[365146838,1749493832590,-1000.0,0.000189,2]
[365146840,1749493832600,-1000.0,0.000189,2]
[365146842,1749493832610,-310.30372878,0.000189,2]
[365146844,1749493832618,-150.0,0.00018905,2]
[365146846,1749493832627,-150.0,0.00018906,2]
[365146848,1749493832636,-150.0,0.00018907,2]
[365146850,1749493832646,-150.0,0.00018909,2]
[365146851,1749493832655,-150.0,0.00018915,2]
[365146853,1749493832665,-150.0,0.00018918,2]
[365146855,1749493832675,-150.0,0.00018918,2]
[365146857,1749493832684,-150.0,0.00018925,2]
[365146859,1749493832693,-150.0,0.00018927,2]
[365146861,1749493832703,-150.0,0.00018929,2]
[365146863,1749493832712,-150.0,0.00018932,2]
[365146865,1749493832721,-310.30372876,0.00018934,2]
[365146867,1749493832731,-1000.0,0.00018936,2]
[365146869,1749493832741,-150.0,0.00018939,2]
[365146871,1749493832750,-150.0,0.0001894,2]
[365146873,1749493832759,-150.0,0.0001894,2]
[365146875,1749493832769,-150.0,0.00018945,2]
[365146877,1749493832778,-150.0,0.00018947,2]
[365146879,1749493832787,-150.0,0.0001895,2]
[365146881,1749493832796,-150.0,0.00018951,2]
[365146883,1749493832805,-1000.0,0.00018957,2]
[365146885,1749493832815,-1000.0,0.00018958,2]
[365146887,1749493832824,-1000.0,0.00018959,2]
[365146889,1749493832833,-150.0,0.00018963,2]
[365146891,1749493832843,-150.0,0.00018963,2]
[365146893,1749493832852,-310.30372876,0.00018969,2]
[365146895,1749493832861,-357.59292274,0.00018975,2]
[365146898,1749493832882,-556.05792904,0.00018975,2]
[365147119,1749493838204,-86.34914822,0.00018975,2]
[365147120,1749493838213,-150.0,0.00018976,2]
[365147121,1749493838223,-130.3446035,0.0001898,2]
[365147122,1749493838267,-19.6553965,0.0001898,2]
[365147123,1749493838276,-255.8998385,0.00018986,2]
[365147294,1749493840274,-707.82515219,0.00018986,2]
[365147296,1749493840283,-151.0,0.00018989,2]
[365147298,1749493840293,-392.412177,0.00019,2]
[365147300,1749493840304,-251.20254454,0.00019,2]
[365147303,1749493840315,-250.0,0.00019,2]
[365147304,1749493840326,-1491.0,0.00019,2]
[365147306,1749493840335,-150.0,0.00019,2]
[365147308,1749493840345,-150.0,0.00019001,2]
[365147310,1749493840356,-310.30372876,0.00019003,2]
[365147312,1749493840365,-1000.0,0.00019004,2]
[365147314,1749493840375,-150.0,0.00019004,2]
[365147316,1749493840385,-1000.0,0.00019005,2]
[365147318,1749493840397,-150.0,0.0001901,2]
[365147320,1749493840407,-150.0,0.00019011,2]
[365147322,1749493840416,-150.0,0.00019014,2]
[365147324,1749493840425,-796.5,0.00019014,2]
[365147326,1749493840435,-150.0,0.00019023,2]
[365147328,1749493840444,-500.0,0.00019025,2]
[365147330,1749493840453,-150.0,0.00019025,2]
[365147332,1749493840463,-150.0,0.00019031,2]
[365147334,1749493840472,-172.12268948,0.00019038,2]
[365147364,1749493840771,-138.18103928,0.00019038,2]
[365147366,1749493840780,-150.0,0.00019038,2]
[365147368,1749493840790,-150.0,0.00019038,2]
[365147370,1749493840799,-150.0,0.00019038,2]
[365147372,1749493840808,-150.0,0.00019038,2]
[365147374,1749493840818,-150.0,0.00019041,2]
[365147376,1749493840827,-1000.0,0.00019045,2]
[365147377,1749493840836,-150.0,0.00019046,2]
[365147379,1749493840845,-150.0,0.00019046,2]
[365147381,1749493840855,-150.0,0.00019058,2]
[365147383,1749493840864,-150.0,0.00019065,2]
[365147385,1749493840873,-963.72499069,0.00019068,2]
[365147387,1749493840883,-150.0,0.0001907,2]
[365147389,1749493840892,-150.0,0.00019071,2]
[365147391,1749493840902,-150.0,0.00019071,2]
[365147393,1749493840911,-310.30372876,0.00019072,2]
[365147395,1749493840920,-540.0657115,0.00019074,2]
[365147397,1749493840930,-5111.59328937,0.00019075,2]
[365147399,1749493840939,-392.33810525,0.00019077,2]
[365147401,1749493840949,-161.3427885,0.00019078,2]
[365147403,1749493840958,-222.80126497,0.00019078,2]
[365147405,1749493840968,-1000.0,0.00019083,2]
[365147407,1749493840978,-150.0,0.00019084,2]
[365147409,1749493840989,-150.0,0.00019084,2]
[365147411,1749493840998,-1000.0,0.00019086,2]
[365147412,1749493841007,-150.0,0.00019094,2]
[365147414,1749493841017,-461.18,0.00019096,2]
[365147416,1749493841026,-461.18,0.00019096,2]
[365147418,1749493841036,-461.18,0.00019096,2]
[365147420,1749493841046,-461.18,0.00019096,2]
[365147422,1749493841055,-1000.0,0.00019099,2]
[365147424,1749493841065,-461.18,0.000191,2]
[365147426,1749493841076,-461.18,0.000191,2]
[365147428,1749493841085,-461.18,0.000191,2]
[365147430,1749493841095,-461.18,0.000191,2]
[365147432,1749493841104,-454.65,0.000191,2]
[365147434,1749493841114,-1000.0,0.000191,2]
[365147436,1749493841123,-150.0,0.00019106,2]
[365147438,1749493841132,-310.30372876,0.00019107,2]
[365147440,1749493841142,-150.0,0.00019109,2]
[365147442,1749493841151,-150.0,0.0001911,2]
[365147443,1749493841161,-1000.0,0.0001911,2]
[365147445,1749493841171,-963.72499069,0.00019123,2]
[365147447,1749493841181,-150.0,0.00019128,2]
[365147449,1749493841190,-150.0,0.00019129,2]
[365147451,1749493841199,-150.0,0.00019131,2]
[365147453,1749493841209,-1000.0,0.00019136,2]
[365147455,1749493841218,-310.30372876,0.00019141,2]
[365147457,1749493841228,-150.0,0.00019152,2]
[365147459,1749493841237,-150.0,0.00019153,2]
[365147461,1749493841246,-150.0,0.00019153,2]
[365147462,1749493841255,-150.0,0.00019159,2]
[365147464,1749493841264,-150.0,0.0001916,2]
[365147467,1749493841275,-150.0,0.00019162,2]
[365147468,1749493841285,-150.0,0.00019162,2]
[365147470,1749493841294,-1000.0,0.00019166,2]
[365147472,1749493841303,-5111.59328935,0.00019167,2]
[365147475,1749493841318,-151.86,0.00019168,2]
[365147477,1749493841330,-151.31088441,0.00019168,2]
[365147478,1749493841340,-392.3381052,0.00019168,2]
[365147480,1749493841349,-1000.0,0.00019172,2]
[365147482,1749493841359,-500.0,0.00019173,2]
[365147484,1749493841369,-502.45833811,0.00019173,2]
[365147486,1749493841378,-159.89837979,0.00019173,2]
[365147488,1749493841388,-159.89902739,0.00019173,2]
[365147490,1749493841398,-504.26120495,0.00019173,2]
[365147492,1749493841408,-500.0,0.00019173,2]
[365147494,1749493841417,-500.0,0.00019173,2]
[365147496,1749493841427,-500.0,0.00019173,2]
[365147498,1749493841437,-12394.1753976,0.00019174,2]
[365147500,1749493841447,-870.6122278,0.00019174,2]
[365147502,1749493841456,-5565.0564612,0.00019174,2]
[365147504,1749493841465,-150294.8896666,0.00019174,2]
[365147506,1749493841474,-3362.3174097,0.00019174,2]
[365147508,1749493841484,-150.0,0.00019175,2]
[365147510,1749493841493,-310.30372876,0.00019176,2]
[365147512,1749493841503,-338433.27724431,0.00019177,2]
[365147514,1749493841512,-368.7649071,0.00019178,2]
[365147516,1749493841522,-1592.92841518,0.00019178,3]
[365147517,1749493841532,-66616.03248277,0.00019178,3]
[365147532,1749493841667,200.0,0.0001711,2]